[Event "Frauenbundesliga 2024-25"]
[Site "Germany"]
[Date "2024.11.17"]
[Round "2.2"]
[White "Roessler, Ulrike"]
[Black "Bulmaga, Irina"]
[Result "0-1"]
[Annotator "TA"]
[ECO "B90"]
[WhiteElo "2059"]
[BlackElo "2401"]
[PlyCount "132"]
[EventDate "2024.11.06"]
[EventType "team-tourn"]
[EventCountry "GER"]
[SourceTitle "playchess.com"]
[Source "ChessBase"]
[SourceQuality "1"]
[TimeControl "40/5400+30:1800+30"]

{[%evp 36,131,23,0,0,0,0,-5,0,-60,-45,-42,-54,-74,-48,-78,-57,-72,-51,-41,-52,-39,-41,-86,-30,-70,-64,-64,0,0,13,-77,-41,-56,-53,-51,-58,-57,-64,-149,-150,-176,-175,-159,-144,-147,-61,-66,-62,-356,-368,-337,-350,-350,-341,-659,-661,-648,-656,-886,-812,-1150,-1020,-3226,-4982,-29986,-29983,-29983,-29984,-29984,-29985,-29986,-29987,-29987,-29987,-29990,-29991,-29991,-29992,-29992,-29991,-29993,-29990,-29993,-29985,-29985,-29986,-29987,-29988,-29988,-29989,-29995,-29996,-29997,-29998,-29998,-29999,-29999]} 1. e4 {[%emt 0:00:05]} c5 {[%emt 0:00:08]} 2. Nf3 {[%emt 0:00:03]} d6 {[%emt 0:00:08]} 3. d4 {[%emt 0:00:03]} cxd4 {[%emt 0:00:08]} 4. Nxd4 {[%emt 0:00:02]} Nf6 {[%emt 0:00:10]} 5. Nc3 {[%emt 0:00:05]} a6 {[%emt 0:00:07]} 6. Be3 {[%emt 0:00:15]} e5 {[%emt 0:00:09]} 7. Nf3 {[%emt 0:00:13]} Be7 {[%emt 0:02:14]} 8. Bc4 {[%emt 0:00:08]} O-O {[%emt 0:02:30]} 9. O-O {[%emt 0:00:16]} Be6 {[%emt 0:05:49]} 10. Bb3 {[%emt 0:00:13]} h6 {[%emt 0:00:45]} 11. Qe2 {[%emt 0:01:11]} Qc7 {[%emt 0:07:27]} 12. Rfd1 {[%emt 0:01:22]} Nbd7 {[%emt 0:01:37]} 13. Nh4 {[%emt 0:07:41]} Rfe8 {[%emt 0:19:06]} 14. Nf5 {[%emt 0:04:31]} Bf8 {[%emt 0:01:33]} 15. Qf3 {[%emt 0:01:59]} Kh7 {[%emt 0:10:19]} 16. Nd5 {[%emt 0:06:03]} Nxd5 {[%emt 0:05:14]} 17. exd5 {[%emt 0:07:14]} Bxf5 {[%emt 0:00:54]} 18. Qxf5+ {[%emt 0:00:03]} Kg8 {[%emt 0:00:26]} 19. c3 {[%emt 0:07:07]} g6 {[%emt 0:02:20]} 20. Qh3 {[%emt 0:01:40]} h5 {[%emt 0:00:10]} 21. Qg3 {[%emt 0:14:09]} Bg7 {[%emt 0:01:39]} 22. f4 {[%emt 0:02:34]} (22. Rac1 $11) 22... exf4 {[%emt 0:00:58]} 23. Bxf4 {[%emt 0:00:52]} Be5 {[%emt 0:01:54]} 24. h3 {[%emt 0:11:02]} Re7 {[%emt 0:06:04]} 25. Kh1 {[%emt 0:04:16]} Rae8 {[%emt 0:00:47]} 26. Rf1 {[%emt 0:01:27]} Qc5 {[%emt 0:02:51]} 27. Rad1 {[%emt 0:04:27]} Bxf4 {[%emt 0:07:03]} 28. Qxf4 {[%emt 0:00:11]} f5 {[%emt 0:01:04]} 29. Qg3 {[%emt 0:05:54]} Kh7 {[%emt 0:01:28]} (29... Kf7 $17 {and ...Re2 should not be overlooked} 30. Bc2 Re5) 30. Bc2 {[%emt 0:00:43]} Re5 {[%emt 0:02:03]} 31. Rd4 {[%emt 0:06:09]} Nf6 {[%emt 0:06:27]} (31... Rxd5 32. Bb3 Rxd4 33. cxd4 $18) ({Black should try} 31... Qb5 $15 32. Rdf4 Qxb2) 32. Qg5 $1 $11 {[%emt 0:03:05]} Rf8 {[%emt 0:02:06]} (32... Nxd5 $2 33. Bxf5 Rxf5 (33... gxf5 $2 34. Rh4 $18) 34. Rxf5 Re1+ 35. Kh2 gxf5 36. Qxf5+ (36. Qxh5+ Kg7 $11) 36... Kh6 37. Qxd5 (37. Rxd5 $2 Qg1+ 38. Kg3 Re3+ $19) (37. Qf8+ Kh7 $18) 37... Qxd5 38. Rxd5 $18) (32... Ne4 $5 33. Bxe4 Rxe4 $16) 33. Qd2 {[%emt 0:03:50]} (33. g4 $11 Rxd5 (33... hxg4 34. hxg4 Ne4 35. Bxe4 $14) 34. gxf5 Rxd4 35. fxg6+ Kg7 36. Qxc5 dxc5 37. cxd4 cxd4 38. Kg2) 33... Rxd5 {[%emt 0:01:42]} (33... Nxd5 34. b4 Qc6 35. Be4 fxe4 (35... Qb5 $2 36. c4 $18) 36. Rxf8 $14) 34. Rxd5 {[%emt 0:00:59]} Qxd5 {[%emt 0:00:10]} 35. Qxd5 {[%emt 0:00:18]} Nxd5 {[%emt 0:00:04]} 36. Be4 {[%emt 0:00:25]} Ne3 {[%emt 0:00:22]} (36... fxe4 $2 {too greedy.} 37. Rxf8 Ne3 38. Rf7+ Kh6 39. Rxb7 $18) 37. Rf3 {[%emt 0:00:22]} (37. Rf4 $15) 37... d5 $1 $17 {[%emt 0:02:18]} 38. Bd3 {[%emt 0:06:33]} Re8 {[%emt 0:00:13]} 39. Kh2 {[%emt 0:00:18]} Kg7 {[%emt 0:00:28]} 40. Rf4 {[%emt 0:01:04]} Re7 {[%emt 0:01:51]} (40... a5 $17 41. Rd4 Re5) 41. Rb4 $15 {[%emt 0:07:44]} g5 {[%emt 0:04:00]} 42. c4 $2 {[%emt 0:07:24][%mdl 8192]} ({White should try} 42. Rb6 $15) 42... dxc4 $19 {[%emt 0:01:23]} 43. Bxc4 {[%emt 0:00:38]} a5 {[%emt 0:00:25]} 44. Ra4 {[%emt 0:01:56]} Rd7 {[%emt 0:06:01]} 45. Be6 $2 {[%emt 0:01:45]} (45. Be2 Rd2 46. Bxh5 Nxg2 (46... Rxb2 $2 47. Bf3 $19) (46... Rxg2+ $2 47. Kh1 $19) 47. Kh1) 45... Rd2 $19 {[%emt 0:02:41]} 46. Rxa5 {[%emt 0:00:21]} Kf6 {[%emt 0:00:16]} 47. Bc8 {[%emt 0:02:24]} Rxg2+ {[%emt 0:00:23]} 48. Kh1 {[%emt 0:00:03]} Rxb2 {[%emt 0:00:19]} 49. Ra7 {[%emt 0:00:23]} b6 {[%emt 0:00:40]} 50. a4 {[%emt 0:05:59]} Ke5 {[%emt 0:00:28]} 51. a5 {[%emt 0:01:16]} bxa5 {[%emt 0:04:15]} 52. Rxa5+ {[%emt 0:00:07]} Kf4 {[%emt 0:00:06]} 53. Ra3 {[%emt 0:02:47]} g4 {[%emt 0:00:33]} 54. hxg4 {[%emt 0:00:06]} hxg4 {[%emt 0:00:14]} 55. Ra4+ {[%emt 0:01:29]} Kg3 {[%emt 0:00:41]} 56. Ra1 {[%emt 0:00:06]} f4 {[%emt 0:00:51]} 57. Rg1+ {[%emt 0:01:14]} Kh4 {[%emt 0:00:53]} 58. Re1 {[%emt 0:02:53]} Rd2 {[%emt 0:00:21]} 59. Ba6 {[%emt 0:00:55]} Rd1 {[%emt 0:00:54]} 60. Rxd1 {[%emt 0:00:04]} Nxd1 {[%emt 0:00:05]} 61. Kg2 {[%emt 0:00:46]} f3+ {[%emt 0:00:37]} 62. Kf1 {[%emt 0:00:11]} g3 {[%emt 0:01:05]} 63. Kg1 {[%emt 0:00:54]} Ne3 {[%emt 0:00:24]} 64. Kh1 {[%emt 0:01:22]} g2+ {[%emt 0:00:13]} 65. Kg1 {[%emt 0:00:36]} Kg3 {[%emt 0:00:08]} 66. Bb7 {[%emt 0:00:03]} f2# {[%emt 0:22:48]} 0-1

[Event "Frauenbundesliga 2024-25"]
[Site "Germany"]
[Date "2024.11.17"]
[Round "2.3"]
[White "Atalik, Ekaterina"]
[Black "Peglau, Dora"]
[Result "1-0"]
[Annotator "TA"]
[ECO "D35"]
[WhiteElo "2399"]
[BlackElo "2102"]
[PlyCount "71"]
[EventDate "2024.11.06"]
[EventType "team-tourn"]
[EventCountry "GER"]
[SourceTitle "playchess.com"]
[Source "ChessBase"]
[SourceQuality "1"]
[TimeControl "40/5400+30:1800+30"]

{[%evp 12,71,14,16,52,51,60,54,46,46,56,57,66,38,24,41,30,24,47,14,14,16,25,0,25,-52,0,-46,-41,-82,-84,-102,0,0,0,0,95,62,22,0,347,37,185,160,173,180,169,179,163,164,168,148,275,268,556,554,29989,29990,29991,29992,29993,29994]} 1. d4 {[%emt 0:00:03]} Nf6 {[%emt 0:00:09]} 2. c4 {[%emt 0:00:07]} e6 {[%emt 0:00:06]} 3. Nc3 {[%emt 0:00:07]} d5 {[%emt 0:00:40]} 4. cxd5 {[%emt 0:00:17]} Nxd5 {[%emt 0:00:13]} 5. e4 {[%emt 0:00:50]} Nxc3 {[%emt 0:00:06]} 6. bxc3 {[%emt 0:00:04]} c5 {[%emt 0:00:06]} 7. Rb1 {[%emt 0:01:04]} Nd7 {[%emt 0:08:12]} 8. Nf3 {[%emt 0:00:31]} cxd4 {[%emt 0:02:17]} 9. cxd4 {[%emt 0:00:27]} Be7 {[%emt 0:01:20]} 10. Bd3 {[%emt 0:02:36]} b6 {[%emt 0:03:18]} 11. O-O {[%emt 0:01:30]} Bb7 {[%emt 0:00:23]} 12. Bf4 {[%emt 0:09:21] White is more active.} O-O {[%emt 0:03:30]} 13. Qe2 {[%emt 0:02:40]} Rc8 {[%emt 0:15:32]} 14. Rb3 {[%emt 0:06:35]} Nf6 {[%emt 0:04:47]} 15. Bb1 {[%emt 0:09:30]} Qd7 {[%emt 0:15:29]} 16. Rd1 {[%emt 0:05:29]} Rfd8 {[%emt 0:02:22]} 17. Bg5 {[%emt 0:08:02]} Qe8 {[%emt 0:09:43]} 18. e5 {[%emt 0:08:02]} ({Better is} 18. Bd3 $11) 18... Nd7 {[%emt 0:06:10]} (18... Nd5 $15 19. Qe4 g6) 19. Bf4 {[%emt 0:05:41]} (19. Bxe7 $11 Qxe7 20. Kh1) 19... Bd5 $15 {[%emt 0:03:23]} 20. Re3 {[%emt 0:04:28][%cal Bb3e3,Be3f3,Bf3g3][%mdl 32]} Nf8 {[%emt 0:02:01]} 21. h4 {[%emt 0:06:26]} Bxf3 {[%emt 0:07:52]} (21... Qa4 $17 22. h5 Rc4) 22. Rxf3 $11 {[%emt 0:04:26]} Qa4 {[%emt 0:03:38]} 23. Be3 {[%emt 0:04:59]} f5 {[%emt 0:01:30]} (23... Ng6 $11 {remains equal.}) 24. exf6 {[%emt 0:09:31]} Bxf6 {[%emt 0:00:02]} 25. Rg3 {[%emt 0:01:09]} Bxd4 $2 {[%emt 0:04:14][%mdl 8192]} (25... Bxh4 $11 26. Rg4 Bf6) 26. Qg4 $2 {[%emt 0:03:00]} (26. Bxd4 $18 Rxd4 27. Rxg7+ Kxg7 28. Qe5+ Kg8 29. Rxd4 (29. Qxd4 $2 Qxd4 30. Bxh7+ Nxh7 $19)) 26... h5 {[%emt 0:03:03]} 27. Rxd4 $18 {[%emt 0:01:10]} hxg4 {[%emt 0:02:06]} 28. Rxa4 $40 {[%emt 0:00:04][%mdl 128] White attacks with force.} Rd1+ {[%emt 0:00:07]} 29. Kh2 {[%emt 0:00:04]} Rxb1 {[%emt 0:00:06]} 30. Raxg4 {[%emt 0:01:10]} ({But not} 30. Rxa7 Rc4 $16) 30... g6 {[%emt 0:02:03]} 31. h5 {[%emt 0:01:01][%cal Bh4h5,Bh5g6,Bg6g7][%mdl 32]} Rc2 {[%emt 0:00:58]} (31... Rb5 $16) 32. hxg6 {[%emt 0:01:43]} Rxa2 $2 {[%emt 0:00:33]} (32... Rb5 {was necessary.} 33. Rh3 Rc7) 33. Bd4 {[%emt 0:02:20] Rh4 would kill now.} Ra5 {[%emt 0:00:24]} 34. Rh4 {[%emt 0:00:54][%csl Gd4][%cal Rh4h8] Inhibits Rh5.} e5 {[%emt 0:00:12]} 35. g7 {[%emt 0:00:18]} Nh7 {[%emt 0:00:44] [#]} 36. Rxh7 $1 {[%emt 0:00:11]} 1-0

[Event "Frauenbundesliga 2024-25"]
[Site "Germany"]
[Date "2024.11.17"]
[Round "2.3"]
[White "Lach, Aleksandra"]
[Black "Mammadzada, Gunay"]
[Result "0-1"]
[Annotator "TA"]
[ECO "C47"]
[WhiteElo "2210"]
[BlackElo "2417"]
[PlyCount "180"]
[EventDate "2024.11.06"]
[EventType "team-tourn"]
[EventCountry "GER"]
[SourceTitle "playchess.com"]
[Source "ChessBase"]
[SourceQuality "1"]
[TimeControl "40/5400+30:1800+30"]

{[%evp 81,180,-28,0,-7,-1,-11,0,0,0,0,0,-17,-21,-58,-54,-66,-47,-104,-105,-101,-106,-203,-190,-174,-163,-180,-178,-182,-181,-176,-186,-171,-57,-56,-19,-54,-14,-20,-8,-17,0,-97,-87,-84,-56,-93,-91,-68,0,-72,-70,-74,-74,-124,-27,-27,-27,-27,-8,-257,-244,-578,-562,-569,-562,-690,-689,-689,-663,-663,-575,-1484,-680,-1408,-1056,-1188,-695,-1915,-671,-655,-655,-2622,-1660,-7507,-1229,-3208,-3290,-12803,-12803,-12808,-12799,-12812,-12811,-12809,-12810,-12797,-12793,-12816,-12791,-12363,-4627]} 1. e4 {[%emt 0:00:13]} e5 {[%emt 0:00:06]} 2. Nf3 {[%emt 0:00:23]} Nc6 {[%emt 0:00:01]} 3. g3 {[%emt 0:00:27]} Nf6 {[%emt 0:00:11]} 4. d3 {[%emt 0:00:10]} d5 {[%emt 0:01:18]} 5. exd5 {[%emt 0:00:36]} Nxd5 {[%emt 0:00:05]} 6. Bg2 {[%emt 0:02:11]} Bc5 {[%emt 0:07:59]} 7. O-O {[%emt 0:01:16]} O-O {[%emt 0:00:20]} 8. Nc3 {[%emt 0:00:07]} Nxc3 {[%emt 0:02:37]} 9. bxc3 {[%emt 0:00:56]} Re8 {[%emt 0:06:42] C47: Scotch Four Knights and Four Knights with 4 g3.} 10. Ng5 {[%emt 0:16:37]} h6 {[%emt 0:08:16]} 11. Ne4 {[%emt 0:05:08]} Bf8 {[%emt 0:05:52]} 12. Rb1 {[%emt 0:04:30]} Rb8 $146 {[%emt 0:06:34]} ({Predecessor:} 12... f5 13. Nd2 Qf6 14. Bb2 b6 15. c4 Bd7 16. f4 Bc5+ 17. Kh1 Bd4 18. fxe5 Bxe5 {½-½ Lortkipanidze,N (2407)-Chigladze,I (2335) GEO-ch 1st League 81st 2021 (8)}) 13. Re1 {[%emt 0:06:19]} Be6 {[%emt 0:03:58]} 14. a4 {[%emt 0:03:13]} Qd7 {[%emt 0:11:41]} 15. Be3 {[%emt 0:09:11]} b6 {[%emt 0:04:51]} 16. f4 {[%emt 0:12:49]} f5 {[%emt 0:05:20]} 17. Nf2 {[%emt 0:02:47]} Bd5 {[%emt 0:01:21]} 18. Qh5 {[%emt 0:12:11]} Bxg2 {[%emt 0:00:33]} 19. Kxg2 {[%emt 0:00:05]} Re7 {[%emt 0:04:52]} 20. g4 {[%emt 0:05:40]} Qd5+ {[%emt 0:08:44]} 21. Kf1 {[%emt 0:00:38]} exf4 {[%emt 0:00:35]} 22. Bxf4 {[%emt 0:00:47]} Qf3 {[%emt 0:01:44]} 23. Bd2 {[%emt 0:03:30]} fxg4 {[%emt 0:10:32]} 24. Qxg4 {[%emt 0:01:06]} Qf6 {[%emt 0:00:42]} 25. Qf4 {[%emt 0:03:11]} Qxf4 {[%emt 0:00:49]} 26. Bxf4 {[%emt 0:00:01]} Rf7 {[%emt 0:00:07]} 27. Bg3 {[%emt 0:00:59]} Rd8 {[%emt 0:00:59]} 28. Re6 {[%emt 0:01:26]} Bd6 {[%emt 0:01:38]} 29. Bxd6 {[%emt 0:01:01]} cxd6 {[%emt 0:00:11]} 30. Kg2 {[%emt 0:02:29]} Ne7 {[%emt 0:00:14]} 31. Rbe1 {[%emt 0:03:53]} Nf5 {[%emt 0:00:01]} 32. Re8+ {[%emt 0:00:15]} Rxe8 {[%emt 0:00:12]} 33. Rxe8+ {[%emt 0:00:01]} Kh7 {[%emt 0:00:12]} 34. Ne4 {[%emt 0:02:02]} d5 {[%emt 0:00:37]} 35. Nd2 {[%emt 0:00:18]} Rc7 {[%emt 0:04:06]} 36. c4 {[%emt 0:00:37]} dxc4 {[%emt 0:01:06]} 37. Nxc4 {[%emt 0:00:06]} Nd4 {[%emt 0:00:03]} 38. c3 {[%emt 0:00:47]} Nb3 {[%emt 0:00:01]} 39. Kf3 {[%emt 0:01:21]} Nc5 {[%emt 0:00:24]} 40. Nb2 {[%emt 0:00:04]} Kg6 {[%emt 0:00:30]} 41. c4 {[%emt 0:06:59]} Kf7 {[%emt 0:00:22]} 42. Re1 {[%emt 0:04:01]} Rd7 {[%emt 0:01:06]} 43. Rf1 {[%emt 0:04:16]} Ke7 {[%emt 0:03:31]} (43... Nxd3 $2 {too greedy.} 44. Nxd3 Ke7 (44... Rxd3+ $2 45. Ke4+ Ke8 46. Kxd3 $18) 45. Ke4 $18) 44. Ke3 {[%emt 0:00:43]} Ne6 {[%emt 0:00:17]} 45. Nd1 {[%emt 0:01:47]} Rd4 {[%emt 0:02:19]} 46. Nc3 {[%emt 0:05:48]} Rh4 {[%emt 0:00:06]} 47. Rf2 {[%emt 0:00:10]} Rh3+ {[%emt 0:02:20]} 48. Kd2 {[%emt 0:00:50]} g5 {[%emt 0:01:12]} 49. Re2 {[%emt 0:03:20]} ({Better is} 49. Ne4 $15) 49... Kd7 $17 {[%emt 0:01:49]} 50. Nd5 {[%emt 0:02:32]} Kd6 {[%emt 0:01:43]} 51. Ne3 {[%emt 0:04:36]} (51. Kc3 $17 {keeps fighting.}) 51... Nf4 $1 $19 {[%emt 0:02:34]} 52. Nf5+ {[%emt 0:00:09]} Kc6 {[%emt 0:00:16]} 53. Re7 {[%emt 0:01:12]} Rxd3+ {[%emt 0:02:17]} (53... Rxh2+ 54. Kc3 $11) 54. Kc2 {[%emt 0:00:01]} Rh3 {[%emt 0:00:37]} 55. Rxa7 {[%emt 0:00:36]} Rxh2+ {[%emt 0:00:05]} 56. Kc3 {[%emt 0:00:40]} Rh3+ {[%emt 0:00:10]} (56... g4 $1 $19 {[%cal Og4g3] aiming for ...g3!} 57. Kb4 Rb2+ 58. Kc3 Rf2) 57. Kd4 $15 {[%emt 0:00:51]} g4 {[%emt 0:02:54]} 58. Ke4 {[%emt 0:00:45]} Ne6 {[%emt 0:01:03]} 59. Ke5 {[%emt 0:00:12]} Nf8 {[%emt 0:01:01]} 60. Rg7 {[%emt 0:01:00]} h5 {[%emt 0:01:07]} 61. Rg8 {[%emt 0:00:22]} (61. Ne7+ $1 $11 {remains equal.} Kc5 62. Nd5 Kxc4 63. Nxb6+ Kb4 64. Nd5+ Kxa4 65. Nf4) 61... Nd7+ $17 {[%emt 0:00:19]} 62. Kd4 {[%emt 0:00:01]} Kc7 {[%emt 0:01:39]} 63. Rg5 {[%emt 0:00:47]} Nc5 {[%emt 0:01:16]} 64. Rg7+ {[%emt 0:00:26]} Nd7 {[%emt 0:02:00]} 65. Rg5 {[%emt 0:00:19]} Rh1 {[%emt 0:01:40]} 66. Ne3 {[%emt 0:00:44]} Nc5 {[%emt 0:01:36]} 67. Rg7+ {[%emt 0:00:48] [#]} Kd6 {[%emt 0:00:16]} ({Black should try} 67... Kd8 $1 $17 {...Ne6+ is the strong threat.} 68. Kd5 Nxa4) 68. Rg6+ $1 $11 {[%emt 0:00:35]} Ne6+ {[%emt 0:00:22]} 69. Ke4 {[%emt 0:00:11]} Re1 {[%emt 0:00:28]} 70. a5 $2 {[%emt 0:00:31]} (70. Rh6 $11 {and White has nothing to worry.}) 70... bxa5 $19 {[%emt 0:01:45]} 71. c5+ $2 {[%emt 0:00:01]} (71. Rh6) 71... Ke7 $1 $19 {[%emt 0:00:13]} (71... Kxc5 72. Rxe6 h4 73. Kf4 $11) 72. c6 {[%emt 0:00:05]} a4 {[%emt 0:00:32]} 73. Rh6 {[%emt 0:00:50]} a3 {[%emt 0:03:47]} 74. Rh7+ {[%emt 0:00:05]} Kd6 {[%emt 0:00:01]} 75. Ra7 {[%emt 0:00:06]} g3 {[%emt 0:02:28]} (75... Kxc6 76. Rxa3 Rh1 77. Ra6+ Kd7 78. Kf5 $17) 76. Kd3 {[%emt 0:00:45]} Kxc6 {[%emt 0:01:41]} (76... Nf4+ $142 77. Kd4 Kxc6 78. Rxa3 h4 79. Ra6+ Kd7 80. Ra7+ Ke6 81. Ra6+ Kf7) 77. Rxa3 {[%emt 0:00:42]} h4 {[%emt 0:00:26]} 78. Ra6+ {[%emt 0:00:49]} Kd7 {[%emt 0:00:10]} 79. Ra7+ {[%emt 0:00:08]} Kd8 {[%emt 0:01:50]} (79... Nc7 $142 80. Kd2 h3 81. Kxe1 h2) 80. Ra8+ {[%emt 0:00:14] [#]} Kc7 $1 {[%emt 0:00:33]} 81. Ra7+ {[%emt 0:01:12]} Kb8 {[%emt 0:01:10]} 82. Rh7 {[%emt 0:00:29]} Nf4+ {[%emt 0:02:50]} 83. Kd4 {[%emt 0:00:20]} g2 {[%emt 0:00:36]} 84. Rh8+ {[%emt 0:00:27]} Kc7 {[%emt 0:00:08]} 85. Rh7+ {[%emt 0:00:20]} Kd8 {[%emt 0:00:06]} 86. Rh8+ {[%emt 0:01:03]} Kd7 {[%emt 0:00:06]} 87. Nxg2 {[%emt 0:00:51]} Nxg2 {[%emt 0:00:05]} 88. Rh6 {[%emt 0:00:02]} Ke7 {[%emt 0:00:23]} 89. Kd3 {[%emt 0:00:10]} Kf7 {[%emt 0:00:25]} 90. Kd2 {[%emt 0:00:01]} Re5 {[%emt 0:00:18]} 0-1

[Event "Frauenbundesliga 2024-25"]
[Site "Germany"]
[Date "2024.11.17"]
[Round "2.4"]
[White "Hejazipour, Mitra"]
[Black "Koehler, Inken"]
[Result "1-0"]
[Annotator "RC"]
[ECO "E90"]
[WhiteElo "2309"]
[BlackElo "2043"]
[PlyCount "55"]
[EventDate "2024.11.06"]
[EventType "team-tourn"]
[EventCountry "GER"]
[SourceTitle "playchess.com"]
[Source "ChessBase"]
[SourceQuality "1"]
[TimeControl "40/5400+30:1800+30"]

1. d4 {[%emt 1:31:00]} Nf6 {[%emt 1:31:00]} 2. c4 {[%emt 0:00:30]} d6 {[%emt 0:00:30]} 3. Nf3 {[%emt 0:00:30]} Nbd7 {[%emt 0:00:30]} 4. Nc3 {[%emt 0:00:30]} e5 {[%emt 0:00:30]} 5. e4 {[%emt 0:00:30]} g6 {[%emt 0:00:30]} 6. Be2 {[%emt 0:00:30]} Bg7 {[%emt 0:00:30]} 7. Be3 {[%emt 0:00:30]} c6 {[%emt 0:00:30]} 8. d5 {[%emt 0:00:30]} c5 {[%emt 0:00:30]} 9. Nd2 {[%emt 0:00:30]} O-O {[%emt 0:00:30]} 10. g4 {[%emt 0:00:30]} Kh8 {[%emt 0:00:30]} 11. h4 {[%emt 0:00:30]} Ng8 {[%emt 0:00:30]} 12. g5 {[%emt 0:00:30]} f6 {[%emt 0:00:30]} 13. Nf3 {[%emt 0:00:30]} Nb6 {[%emt 0:00:30]} 14. gxf6 {[%emt 0:00:30]} Qxf6 {[%emt 0:00:30]} 15. Ng5 {[%emt 0:00:30]} Bh6 {[%emt 0:00:30]} 16. Qd2 {[%emt 0:00:30]} Bd7 {[%emt 0:00:30]} 17. O-O-O {[%emt 0:00:30]} Rab8 {[%emt 0:00:30]} 18. Rdg1 {[%emt 0:00:30]} Na8 {[%emt 0:00:30]} 19. h5 {[%emt 0:00:30]} gxh5 {[%emt 0:00:30]} 20. Rxh5 {[%emt 0:00:30]} Be8 {[%emt 0:00:30]} 21. Rh2 {[%emt 0:00:30]} Bg6 {[%emt 0:00:30]} 22. Nxh7 {[%emt 0:00:30]} Bxh7 {[%emt 0:00:30]} 23. Bxh6 {[%emt 0:00:30]} Nxh6 {[%emt 0:00:30]} 24. Rxh6 {[%emt 0:00:30]} Qe7 {[%emt 0:00:30]} 25. Rgh1 {[%emt 0:00:30]} Rf7 {[%emt 0:00:30]} 26. Bh5 {[%emt 0:00:30]} Rbf8 {[%emt 0:00:30]} 27. Bg6 {[%emt 0:00:30]} Rxf2 {[%emt 0:00:30]} 28. Rxh7+ {[%emt 0:00:30]} 1-0